bitfinex-derivatives/quotes_BTCF0:USTF0_20260221
["timestamp","ask_amount","ask_price","bid_price","bid_amount"]
[1771687113583,0.43071128,68590.0,68559.0,0.01459]
[1771687113584,0.10655064,68604.0,68588.0,0.014584]
[1771687113775,0.20614795,68603.0,68589.0,0.014583]
[1771687113976,0.20614795,68602.0,68588.0,0.014584]
[1771687114280,0.20614795,68601.0,68588.0,0.014584]
[1771687114483,0.10626785,68609.0,68572.0,0.32610137]
[1771687114679,0.46704,68614.0,68596.0,0.014582]
[1771687114879,0.20141634,68613.0,68597.0,0.014582]
[1771687115075,0.20141634,68613.0,68586.0,0.014584]
[1771687115076,0.10626785,68618.0,68600.0,0.014581]
[1771687115276,0.10626785,68618.0,68601.0,0.014581]
[1771687115476,0.10626785,68618.0,68600.0,0.014581]
[1771687115678,0.10626785,68618.0,68601.0,0.014581]
[1771687115877,0.10626785,68618.0,68602.0,0.014581]
[1771687116179,0.10626785,68618.0,68603.0,0.01458]
[1771687116773,0.05679136,68620.0,68602.0,0.014581]
[1771687117084,0.05679136,68620.0,68603.0,0.01458]
[1771687117282,0.05679136,68620.0,68602.0,0.014581]
[1771687117781,0.05679136,68612.0,68596.0,0.014582]
[1771687117978,0.11813062,68611.0,68590.0,0.014583]
[1771687118476,0.11813062,68611.0,68592.0,0.014583]
[1771687118672,0.11813062,68611.0,68587.0,0.014584]
[1771687118877,0.11813062,68611.0,68591.0,0.014583]
[1771687119077,0.11813062,68611.0,68592.0,0.014583]
[1771687119584,0.11813062,68611.0,68594.0,0.014582]
[1771687119879,0.17484605,68620.0,68601.0,0.014581]
[1771687120183,0.17484605,68620.0,68599.0,0.014581]
[1771687120372,0.17484605,68620.0,68601.0,0.014581]
[1771687121278,0.17484605,68620.0,68595.0,0.21813665]
[1771687121279,0.17431462,68611.0,68594.0,0.003]
[1771687121487,0.05679136,68601.0,68589.0,0.014583]
[1771687121784,0.05679136,68601.0,68587.0,0.014584]
[1771687122185,0.05679136,68601.0,68589.0,0.014583]
[1771687122386,0.11517387,68609.0,68589.0,0.014583]
[1771687124388,0.11517387,68609.0,68588.0,0.014584]
[1771687124882,0.11517387,68609.0,68586.0,0.014584]
[1771687125083,0.11517387,68609.0,68582.0,0.014585]
[1771687126185,0.11517387,68609.0,68582.0,0.001]
[1771687126785,0.11297497,68599.0,68582.0,0.002]
[1771687127089,0.11297497,68599.0,68582.0,0.001]
[1771687127478,0.11297497,68599.0,68582.0,0.002]
[1771687127679,0.11297497,68599.0,68565.0,0.014588]
[1771687127982,0.11297497,68599.0,68575.0,0.014586]
[1771687128188,0.11297497,68599.0,68573.0,0.014587]
[1771687128489,0.11297497,68599.0,68574.0,0.014587]
[1771687128687,0.06806747,68590.0,68572.0,0.014587]
[1771687128890,0.10859844,68591.0,68574.0,0.014587]
[1771687129088,0.10859844,68591.0,68572.0,0.014587]
[1771687129688,0.10859844,68591.0,68573.0,0.014587]
[1771687130285,0.10859844,68591.0,68574.0,0.014587]
[1771687130589,0.10859844,68591.0,68575.0,0.014586]
[1771687133589,0.06806747,68600.0,68576.0,0.014586]
[1771687133590,0.10630016,68599.0,68576.0,0.014586]
[1771687135698,0.10630016,68599.0,68579.0,0.014585]
[1771687137095,0.10730016,68599.0,68579.0,0.014585]
[1771687137597,0.10630016,68599.0,68579.0,0.014585]
[1771687137801,0.10730016,68599.0,68579.0,0.014585]
[1771687139195,0.10630016,68599.0,68579.0,0.014585]
[1771687141202,0.10630016,68599.0,68576.0,0.014586]
[1771687142099,0.10184962,68597.0,68576.0,0.014586]
[1771687142893,0.10184962,68597.0,68576.0,0.029172]
[1771687143097,0.10184962,68597.0,68576.0,0.014586]
[1771687143499,0.10184962,68597.0,68576.0,0.029172]
[1771687143893,0.17704206,68590.0,68576.0,0.029172]
[1771687144094,0.17704206,68590.0,68576.0,0.014586]
[1771687144492,0.278256,68590.0,68576.0,0.014586]
[1771687144699,0.278256,68590.0,68575.0,0.014586]
[1771687144905,0.278256,68590.0,68574.0,0.014587]
[1771687145597,0.278256,68590.0,68576.0,0.014586]
[1771687145998,0.278256,68590.0,68576.0,0.029172]
[1771687146199,0.278256,68590.0,68577.0,0.014586]
[1771687147598,0.278256,68590.0,68576.0,0.014586]
[1771687147902,0.279256,68590.0,68576.0,0.014586]
[1771687148390,0.279256,68590.0,68576.0,0.029172]
[1771687149101,0.279256,68590.0,68577.0,0.014586]
[1771687150099,0.17704206,68587.0,68574.0,0.014587]
[1771687150299,0.17704206,68582.0,68574.0,0.014587]
[1771687150499,0.278256,68590.0,68577.0,0.014586]
[1771687150700,0.279256,68590.0,68577.0,0.014586]
[1771687152102,0.279256,68590.0,68575.0,0.014586]
[1771687152103,0.279256,68590.0,68576.0,0.014586]
[1771687152309,0.278256,68590.0,68576.0,0.014586]
[1771687152511,0.278256,68590.0,68574.0,0.014587]
[1771687153003,0.279256,68590.0,68574.0,0.014587]
[1771687153204,0.17704206,68584.0,68574.0,0.014587]
[1771687153802,0.17704206,68584.0,68567.0,0.014588]
[1771687153803,0.17704206,68584.0,68571.0,0.014587]
[1771687154003,0.17704206,68580.0,68571.0,0.014587]
[1771687154200,0.17704206,68580.0,68572.0,0.014587]
[1771687154404,0.17704206,68580.0,68573.0,0.014587]
[1771687154611,0.17704206,68583.0,68573.0,0.014587]
[1771687154907,0.17704206,68583.0,68571.0,0.014587]
[1771687155112,0.17704206,68583.0,68568.0,0.014588]
[1771687155307,0.17704206,68580.0,68571.0,0.014587]
[1771687155502,0.17704206,68600.0,68573.0,0.014587]
[1771687155503,0.09538422,68599.0,68573.0,0.014587]
[1771687155806,0.17704206,68581.0,68573.0,0.014587]
[1771687156212,0.17804206,68583.0,68573.0,0.014587]
[1771687156700,0.17704206,68583.0,68573.0,0.015587]
[1771687157309,0.17704206,68583.0,68573.0,0.014587]
[1771687157607,0.09472927,68582.0,68568.0,0.23163363]
[1771687157813,0.17704206,68578.0,68564.0,0.014589]
[1771687158013,0.17704206,68572.0,68563.0,0.014589]
[1771687158312,0.17704206,68572.0,68556.0,0.43794876]
[1771687158313,0.17704206,68572.0,68558.0,0.01459]
[1771687158710,0.17704206,68580.0,68564.0,0.014589]
[1771687158711,0.17704206,68570.0,68564.0,0.014589]
[1771687158910,0.17704206,68574.0,68565.0,0.014588]
[1771687159306,0.17704206,68574.0,68558.0,0.01459]
[1771687159507,0.17704206,68570.0,68559.0,0.01459]
[1771687159711,0.17704206,68570.0,68554.0,0.22193185]
[1771687159906,0.17704206,68570.0,68561.0,0.014589]
[1771687161306,0.17704206,68570.0,68558.0,0.01459]
[1771687161506,0.17704206,68570.0,68557.0,0.01459]
[1771687161706,0.17704206,68570.0,68558.0,0.01459]
[1771687162611,0.17704206,68570.0,68554.0,0.22193185]
[1771687162911,0.17704206,68564.0,68557.0,0.01459]
[1771687163122,0.17704206,68567.0,68557.0,0.01459]
[1771687163306,0.014589,68561.0,68553.0,0.014591]
[1771687163617,0.014589,68562.0,68554.0,0.014591]
[1771687164216,0.014589,68561.0,68554.0,0.014591]
[1771687165218,0.014589,68561.0,68555.0,0.014591]
[1771687165411,0.014588,68566.0,68556.0,0.01459]
[1771687165618,0.17704206,68570.0,68563.0,0.014589]
[1771687165915,0.014588,68570.0,68564.0,0.014589]
[1771687166519,0.014588,68570.0,68563.0,0.014589]
[1771687166714,0.014587,68571.0,68564.0,0.014589]
[1771687167019,0.014587,68571.0,68563.0,0.014589]
[1771687167216,0.19162706,68580.0,68567.0,0.014588]
[1771687167217,0.014586,68577.0,68567.0,0.014588]
[1771687167416,0.17704206,68580.0,68568.0,0.014588]
[1771687167720,0.17704206,68580.0,68572.0,0.014587]
[1771687167919,0.17704206,68582.0,68572.0,0.014587]
[1771687168121,0.17704206,68582.0,68573.0,0.014587]
[1771687168320,0.17704206,68600.0,68573.0,0.014587]
[1771687168321,0.17704206,68583.0,68573.0,0.014587]
[1771687169009,0.17704206,68583.0,68573.0,0.029174]
[1771687169213,0.17704206,68583.0,68574.0,0.014587]
[1771687169414,0.17704206,68583.0,68573.0,0.014587]
[1771687169823,0.17704206,68583.0,68574.0,0.014587]
[1771687170324,0.17704206,68583.0,68573.0,0.014587]
[1771687171419,0.17704206,68583.0,68571.0,0.014587]
[1771687171613,0.17704206,68581.0,68569.0,0.014588]
[1771687172720,0.17704206,68581.0,68565.0,0.014588]
[1771687173019,0.17704206,68581.0,68565.0,0.014589]
[1771687173417,0.17704206,68580.0,68569.0,0.014588]
[1771687173611,0.17704206,68580.0,68567.0,0.014588]
[1771687173812,0.17704206,68580.0,68568.0,0.014588]
[1771687175628,0.17704206,68580.0,68567.0,0.014588]
[1771687178627,0.17704206,68580.0,68567.0,0.029176]
[1771687178824,0.17704206,68580.0,68567.0,0.014588]
[1771687179925,0.17704206,68580.0,68568.0,0.014588]
[1771687180127,0.17704206,68580.0,68569.0,0.014588]
[1771687180429,0.17704206,68580.0,68568.0,0.014588]
[1771687182429,0.17704206,68580.0,68571.0,0.014587]
[1771687183445,0.17704206,68580.0,68570.0,0.014587]
[1771687186232,0.17704206,68580.0,68565.0,0.014589]
[1771687186833,0.17704206,68580.0,68567.0,0.014588]
[1771687188740,0.17704206,68580.0,68566.0,0.014588]
[1771687189833,0.17704206,68600.0,68568.0,0.014588]
[1771687190035,0.17704206,68580.0,68571.0,0.014587]
[1771687190424,0.17704206,68580.0,68572.0,0.014587]
[1771687190628,0.17704206,68580.0,68571.0,0.014587]
[1771687190830,0.17704206,68580.0,68569.0,0.014588]
[1771687191038,0.17704206,68580.0,68568.0,0.014588]
[1771687191930,0.17704206,68580.0,68569.0,0.014588]
[1771687194435,0.17704206,68580.0,68570.0,0.014588]
[1771687195031,0.17704206,68580.0,68568.0,0.014588]
[1771687195227,0.17704206,68580.0,68569.0,0.014588]
[1771687197538,0.17704206,68580.0,68568.0,0.014588]
[1771687198040,0.2021,68603.0,68571.0,0.014587]
[1771687198334,0.24393466,68604.0,68571.0,0.014587]
[1771687198335,0.17704206,68581.0,68571.0,0.014587]
[1771687200029,0.17704206,68581.0,68575.0,0.0008]
[1771687200229,0.17704206,68585.0,68571.0,0.015587]
[1771687200530,0.17704206,68581.0,68571.0,0.015587]
[1771687200834,0.17704206,68581.0,68571.0,0.014587]
[1771687201037,0.17704206,68581.0,68569.0,0.029176]
[1771687201231,0.17704206,68581.0,68570.0,0.014587]
[1771687201430,0.17704206,68581.0,68569.0,0.014588]
[1771687201634,0.17704206,68581.0,68564.0,0.014589]
[1771687201832,0.17704206,68581.0,68567.0,0.014588]
[1771687202030,0.05676293,68580.0,68565.0,0.029176]
[1771687202339,0.05676293,68580.0,68564.0,0.014589]
[1771687202540,0.05676293,68580.0,68565.0,0.014589]
[1771687202732,0.05676293,68580.0,68565.0,0.014588]
[1771687202933,0.05676293,68580.0,68566.0,0.014588]
[1771687206848,0.05676293,68580.0,68560.0,0.3274772]
[1771687207141,0.05676293,68570.0,68559.0,0.01459]
[1771687207331,0.05676293,68570.0,68558.0,0.01459]
[1771687207530,0.05676293,68580.0,68558.0,0.01459]
[1771687207734,0.20752376,68579.0,68558.0,0.01459]
[1771687207933,0.20752376,68578.0,68558.0,0.01459]
[1771687208141,0.20752376,68577.0,68558.0,0.01459]
[1771687208332,0.20752376,68576.0,68558.0,0.01459]
[1771687208533,0.014588,68566.0,68558.0,0.01459]
[1771687209341,0.014588,68567.0,68558.0,0.01459]
[1771687209935,0.014588,68566.0,68558.0,0.01459]
[1771687210736,0.014588,68566.0,68558.0,0.02918]
[1771687210937,0.014588,68566.0,68558.0,0.01459]
[1771687211143,0.014588,68566.0,68558.0,0.02918]
[1771687214748,0.014588,68566.0,68559.0,0.01459]
[1771687215045,0.014588,68566.0,68558.0,0.01459]
[1771687215046,0.014589,68565.0,68558.0,0.02918]
[1771687215744,0.014588,68566.0,68559.0,0.01459]
[1771687216850,0.014588,68567.0,68560.0,0.01459]
[1771687217346,0.014588,68568.0,68561.0,0.014589]
[1771687217650,0.014587,68571.0,68563.0,0.014589]
[1771687217850,0.014587,68571.0,68563.0,0.029178]
[1771687218050,0.014587,68571.0,68563.0,0.014589]
[1771687219042,0.014587,68572.0,68563.0,0.014589]
[1771687219650,0.014587,68572.0,68563.0,0.029178]
[1771687220950,0.014587,68572.0,68564.0,0.014589]
[1771687221248,0.014587,68572.0,68563.0,0.014589]
[1771687223547,0.05676293,68580.0,68558.0,0.22185289]
[1771687223751,0.20661091,68579.0,68561.0,0.014589]
[1771687224050,0.20661091,68578.0,68561.0,0.014589]
[1771687224252,0.20661091,68577.0,68561.0,0.014589]
[1771687224446,0.05676293,68580.0,68561.0,0.014589]
[1771687224646,0.2066162,68579.0,68561.0,0.014589]
[1771687224848,0.2066162,68578.0,68561.0,0.014589]
[1771687225043,0.2066162,68577.0,68561.0,0.014589]
[1771687225238,0.05676293,68580.0,68562.0,0.014589]
[1771687225445,0.20662834,68579.0,68565.0,0.014589]
[1771687225650,0.20662834,68578.0,68565.0,0.014589]
[1771687225944,0.05676293,68580.0,68565.0,0.014589]
[1771687226144,0.20662169,68579.0,68565.0,0.014589]
[1771687226346,0.20662169,68578.0,68561.0,0.22083894]
[1771687226543,0.05676293,68590.0,68568.0,0.014588]
[1771687226738,0.2066372,68589.0,68568.0,0.014588]
[1771687226943,0.2066372,68588.0,68567.0,0.014588]
[1771687227143,0.05676293,68580.0,68567.0,0.014588]
[1771687227350,0.2066372,68579.0,68567.0,0.014588]
[1771687227550,0.05676293,68580.0,68567.0,0.014588]
[1771687227753,0.20665396,68579.0,68567.0,0.014588]
[1771687227946,0.05676293,68580.0,68567.0,0.014588]
[1771687228251,0.20665396,68579.0,68567.0,0.014588]
[1771687228445,0.20665396,68578.0,68567.0,0.014588]
[1771687228644,0.05676293,68580.0,68567.0,0.014588]
[1771687228948,0.20668249,68579.0,68567.0,0.014588]
[1771687229253,0.20668249,68578.0,68566.0,0.014588]
[1771687229451,0.05676293,68580.0,68566.0,0.014588]
[1771687229749,0.20671505,68579.0,68566.0,0.014588]
[1771687229951,0.20671505,68578.0,68566.0,0.014588]
[1771687230150,0.05676293,68580.0,68566.0,0.014588]
[1771687230351,0.20671498,68579.0,68566.0,0.014588]
[1771687230552,0.20671498,68578.0,68566.0,0.014588]
[1771687230755,0.05676293,68590.0,68574.0,0.014587]
[1771687231053,0.467,68594.0,68560.0,0.05676293]
[1771687231054,0.467,68594.0,68577.0,0.014586]
[1771687232052,0.05676293,68590.0,68577.0,0.014586]
[1771687232351,0.467,68594.0,68577.0,0.014586]
[1771687234157,0.05676293,68600.0,68577.0,0.014586]
[1771687234452,0.05676293,68600.0,68578.0,0.23345263]
[1771687234953,0.05676293,68590.0,68578.0,0.21886663]
[1771687235153,0.05676293,68600.0,68575.0,0.014586]
[1771687235344,0.05676293,68590.0,68575.0,0.014586]
[1771687236052,0.05676293,68590.0,68584.0,0.0008]
[1771687236256,0.05676293,68594.0,68575.0,0.014586]
[1771687236550,0.05676293,68590.0,68575.0,0.014586]
[1771687237148,0.05776293,68590.0,68575.0,0.014586]
[1771687238754,0.05776293,68590.0,68574.0,0.014587]
[1771687239148,0.05676293,68590.0,68574.0,0.014587]
[1771687239852,0.05676293,68590.0,68573.0,0.014587]
[1771687240344,0.05676293,68590.0,68574.0,0.014587]
[1771687240656,0.05676293,68590.0,68572.0,0.014587]
[1771687240855,0.05676293,68590.0,68574.0,0.014587]
[1771687241549,0.05676293,68590.0,68571.0,0.014587]
[1771687241749,0.05676293,68590.0,68572.0,0.014587]
[1771687241949,0.05676293,68590.0,68573.0,0.014587]
[1771687242347,0.05676293,68590.0,68569.0,0.014588]
[1771687242545,0.05676293,68590.0,68571.0,0.014587]
[1771687243259,0.05676293,68590.0,68569.0,0.014588]
[1771687243647,0.05676293,68590.0,68569.0,0.029176]
[1771687243850,0.05676293,68590.0,68569.0,0.014588]
[1771687244651,0.05676293,68590.0,68567.0,0.014588]
[1771687244849,0.20548527,68589.0,68566.0,0.014588]
[1771687245050,0.20548527,68588.0,68566.0,0.014588]
[1771687245352,0.20548527,68587.0,68566.0,0.014588]
[1771687245553,0.05676293,68590.0,68565.0,0.029177]
[1771687245754,0.20549597,68589.0,68566.0,0.014588]
[1771687246058,0.20549597,68588.0,68566.0,0.014588]
[1771687246248,0.20549597,68587.0,68564.0,0.014589]
[1771687246451,0.05676293,68580.0,68561.0,0.23485414]
[1771687246643,0.05676293,68580.0,68563.0,0.014589]
[1771687247257,0.05676293,68580.0,68563.0,0.029178]
[1771687247452,0.05676293,68580.0,68564.0,0.014589]
[1771687247659,0.05676293,68580.0,68565.0,0.014589]
[1771687247850,0.05676293,68590.0,68565.0,0.014589]
[1771687248052,0.20557557,68589.0,68565.0,0.014589]
[1771687248250,0.20557557,68588.0,68563.0,0.014589]
[1771687248448,0.20557557,68587.0,68562.0,0.014589]
[1771687248649,0.20557557,68586.0,68562.0,0.014589]
[1771687248855,0.05676293,68580.0,68563.0,0.014589]
[1771687251670,0.05676293,68580.0,68561.0,0.23485414]
[1771687252661,0.05676293,68580.0,68561.0,0.22026514]
[1771687252852,0.20446933,68579.0,68558.0,0.01459]
[1771687253057,0.05676293,68580.0,68559.0,0.01459]
[1771687253249,0.20447579,68579.0,68559.0,0.01459]
[1771687253453,0.05676293,68580.0,68559.0,0.01459]
[1771687253656,0.20448038,68579.0,68559.0,0.01459]
[1771687253847,0.05676293,68580.0,68559.0,0.01459]
[1771687254053,0.20448038,68579.0,68559.0,0.01459]
[1771687254255,0.05676293,68580.0,68559.0,0.01459]
[1771687254563,0.014588,68569.0,68559.0,0.01459]
[1771687255960,0.014588,68568.0,68559.0,0.01459]
[1771687256362,0.014588,68569.0,68559.0,0.01459]
[1771687258162,0.029176,68569.0,68559.0,0.01459]
[1771687258362,0.014588,68569.0,68559.0,0.01459]
[1771687258663,0.014588,68567.0,68558.0,0.01459]
[1771687260059,0.014588,68568.0,68559.0,0.01459]
[1771687260556,0.014585,68582.0,68570.0,0.014587]
[1771687260756,0.014585,68582.0,68556.0,0.01459]
[1771687260757,0.014586,68579.0,68569.0,0.014588]
[1771687261063,0.21907434,68578.0,68569.0,0.2222146]
[1771687261359,0.014586,68577.0,68569.0,0.2222146]
[1771687263154,0.014586,68579.0,68569.0,0.2368026]
[1771687263354,0.05676293,68590.0,68569.0,0.2368026]
[1771687263555,0.20446234,68586.0,68569.0,0.2368026]
[1771687263758,0.20446234,68585.0,68569.0,0.2368026]
[1771687263958,0.20446234,68584.0,68569.0,0.2368026]
[1771687264163,0.20446234,68583.0,68569.0,0.2368026]
[1771687264367,0.17706283,68590.0,68569.0,0.2368026]
[1771687264669,0.20446943,68586.0,68569.0,0.2222146]
[1771687264962,0.17706283,68580.0,68569.0,0.2222146]
[1771687267060,0.35412566,68580.0,68562.0,0.014589]
[1771687267367,0.35412566,68580.0,68561.0,0.014589]
[1771687267368,0.17706283,68571.0,68561.0,0.014589]
[1771687268465,0.17706283,68571.0,68562.0,0.014589]
[1771687269973,0.17706283,68571.0,68560.0,0.2365671]
[1771687270266,0.17706283,68571.0,68562.0,0.014589]
[1771687272270,0.24113369,68596.0,68561.0,0.014589]
[1771687272476,0.17706283,68580.0,68566.0,0.014588]
[1771687272662,0.20466568,68579.0,68566.0,0.014588]
[1771687272861,0.17706283,68580.0,68564.0,0.22173593]
[1771687272862,0.20466568,68578.0,68564.0,0.22173593]
[1771687273065,0.17706283,68580.0,68567.0,0.014588]
[1771687273265,0.20466553,68579.0,68567.0,0.014588]
[1771687273466,0.20466553,68578.0,68566.0,0.014588]
[1771687273673,0.17706283,68580.0,68566.0,0.014588]
[1771687273875,0.20469676,68579.0,68566.0,0.014588]
[1771687274070,0.20469676,68578.0,68566.0,0.014588]
[1771687274272,0.17706283,68580.0,68566.0,0.014588]
[1771687274472,0.2047333,68579.0,68566.0,0.014588]
[1771687274775,0.17706283,68580.0,68566.0,0.014588]
[1771687274776,0.2047333,68578.0,68566.0,0.014588]
[1771687274977,0.17706283,68580.0,68566.0,0.014588]
[1771687275274,0.20473301,68579.0,68566.0,0.014588]
[1771687275474,0.20473301,68578.0,68566.0,0.014588]
[1771687275675,0.17706283,68580.0,68568.0,0.014588]
[1771687275871,0.20474794,68579.0,68568.0,0.014588]
[1771687276071,0.20474794,68578.0,68568.0,0.014588]
[1771687276276,0.20476299,68577.0,68567.0,0.014588]
[1771687276476,0.17706283,68580.0,68567.0,0.014588]
[1771687276676,0.20476285,68579.0,68567.0,0.014588]
[1771687276876,0.20476285,68578.0,68567.0,0.014588]
[1771687277176,0.20476285,68577.0,68567.0,0.014588]
[1771687277372,0.17706283,68580.0,68566.0,0.22265247]
[1771687277569,0.20477701,68579.0,68566.0,0.22265247]
[1771687277870,0.20477701,68578.0,68566.0,0.22265247]
[1771687278074,0.20477701,68577.0,68572.0,0.00088]
[1771687278275,0.17706283,68580.0,68566.0,0.22265247]
[1771687278478,0.20479406,68579.0,68566.0,0.22265247]
[1771687278667,0.20479406,68578.0,68566.0,0.22265247]
[1771687278868,0.20479406,68577.0,68566.0,0.22265247]
[1771687279069,0.17706283,68580.0,68566.0,0.22265247]
[1771687279269,0.20479406,68579.0,68566.0,0.22265247]
[1771687279477,0.20479406,68578.0,68566.0,0.22265247]
[1771687279677,0.20479406,68577.0,68566.0,0.22265247]
[1771687279874,0.17706283,68580.0,68566.0,0.22265247]
[1771687280081,0.20496667,68579.0,68567.0,0.014588]
[1771687280373,0.20246567,68578.0,68572.0,0.014587]
[1771687280580,0.17706283,68590.0,68574.0,0.23693822]
[1771687280774,0.17706283,68590.0,68574.0,0.22235122]
[1771687280979,0.17706283,68590.0,68574.0,0.23693722]
[1771687281166,0.17706283,68590.0,68574.0,0.22235122]
[1771687284477,0.46692,68599.0,68574.0,0.22235122]
[1771687284478,0.46692,68599.0,68577.0,0.014586]
[1771687284679,0.17706283,68590.0,68578.0,0.23772353]
[1771687286986,0.17706283,68590.0,68578.0,0.22313753]
[1771687287375,0.17706283,68590.0,68574.0,0.014587]
[1771687289592,0.17706283,68590.0,68573.0,0.014587]
[1771687290188,0.17706283,68590.0,68574.0,0.014587]
[1771687290695,0.17706283,68590.0,68575.0,0.22074624]
[1771687294092,0.17706283,68590.0,68575.0,0.23533224]
[1771687294394,0.17706283,68590.0,68575.0,0.22074624]
[1771687296185,0.20456605,68589.0,68575.0,0.22074624]
[1771687296387,0.17706283,68600.0,68575.0,0.23533224]
[1771687296694,0.17706283,68590.0,68578.0,0.22262985]
[1771687296889,0.17706283,68590.0,68578.0,0.23721585]
[1771687299391,0.17706283,68600.0,68583.0,0.22266666]
[1771687299595,0.17706283,68600.0,68585.0,0.23748817]
[1771687299596,0.20452833,68599.0,68585.0,0.23748817]
[1771687299791,0.20452833,68598.0,68585.0,0.22290417]
[1771687299995,0.20452833,68597.0,68585.0,0.22290417]
[1771687300292,0.17706283,68600.0,68585.0,0.22290417]
[1771687300486,0.20448746,68599.0,68585.0,0.22290417]
[1771687300688,0.20448746,68598.0,68585.0,0.22290417]
[1771687300888,0.20448746,68597.0,68585.0,0.22290417]
[1771687301090,0.17706283,68600.0,68585.0,0.22290417]
[1771687301287,0.20448746,68599.0,68585.0,0.22290417]
[1771687301495,0.17706283,68595.0,68583.0,0.001]
[1771687301798,0.17706283,68593.0,68578.0,0.014586]
[1771687302095,0.17706283,68590.0,68587.0,0.00088]
[1771687302283,0.17806283,68597.0,68578.0,0.23807989]
[1771687302484,0.17706283,68590.0,68578.0,0.23807989]
[1771687302899,0.17706283,68590.0,68580.0,0.23807906]
[1771687303898,0.17706283,68600.0,68580.0,0.23807906]
[1771687304098,0.2044414,68599.0,68580.0,0.23807906]
[1771687304299,0.2044414,68598.0,68580.0,0.23807906]
[1771687304499,0.17706283,68600.0,68580.0,0.23807906]
[1771687304697,0.20443708,68599.0,68580.0,0.23807906]
[1771687304995,0.17706283,68590.0,68580.0,0.22349406]
[1771687310094,0.17706283,68600.0,68584.0,0.22419309]
[1771687310310,0.20429346,68599.0,68584.0,0.22419309]
[1771687310501,0.20429346,68598.0,68584.0,0.22419309]
[1771687310808,0.20429346,68597.0,68584.0,0.22419309]
[1771687311011,0.17706283,68600.0,68584.0,0.22419309]
[1771687311198,0.20432566,68599.0,68582.0,0.014585]
[1771687311399,0.17706283,68594.0,68572.0,0.2241925]
[1771687311609,0.17706283,68582.0,68574.0,0.014587]
[1771687311815,0.17706283,68590.0,68574.0,0.014587]
[1771687312705,0.17706283,68590.0,68575.0,0.014586]
[1771687313210,0.17706283,68590.0,68575.0,0.23891881]
[1771687313610,0.17706283,68590.0,68575.0,0.22433281]
[1771687313816,0.17706283,68590.0,68576.0,0.014586]
[1771687316613,1.81936034,68614.0,68578.0,0.2252679]
[1771687316819,0.17706283,68590.0,68580.0,0.2252679]
[1771687318420,0.17806283,68590.0,68580.0,0.2252679]
[1771687320312,0.17806283,68590.0,68578.0,0.014586]
[1771687321222,0.17706283,68590.0,68578.0,0.014586]
[1771687321413,0.17806283,68590.0,68578.0,0.014586]
[1771687321922,0.17706283,68590.0,68578.0,0.014586]
[1771687324022,0.05674141,68590.0,68578.0,0.014586]
[1771687324924,0.05674141,68590.0,68579.0,0.014586]
[1771687325419,0.05674141,68600.0,68579.0,0.014586]
[1771687325625,0.20479314,68599.0,68588.0,0.2259527]
[1771687325826,0.20479314,68598.0,68592.0,0.014583]
[1771687326021,0.46688,68609.0,68591.0,0.014583]
[1771687326022,0.20479314,68597.0,68591.0,0.014583]
[1771687326222,0.46688,68609.0,68591.0,0.014583]
[1771687326417,0.46688,68609.0,68582.0,0.014585]
[1771687326418,0.05674141,68601.0,68580.0,0.22595024]
[1771687326724,0.20478783,68600.0,68586.0,0.25511824]
[1771687326926,0.20478783,68600.0,68587.0,0.014584]
[1771687327318,0.20478783,68600.0,68586.0,0.24053424]
[1771687327319,0.20478783,68600.0,68588.0,0.014584]
[1771687327920,0.20478783,68600.0,68587.0,0.014584]
[1771687329723,0.20478783,68600.0,68586.0,0.22595024]
[1771687331325,0.20478783,68600.0,68580.0,0.014585]
[1771687331524,0.20478783,68600.0,68581.0,0.014585]
[1771687332527,0.20478783,68600.0,68577.0,0.24056414]
[1771687332828,0.05674141,68590.0,68579.0,0.014585]
[1771687333224,0.001,68600.0,68579.0,0.014585]
[1771687333425,0.20485706,68599.0,68579.0,0.014585]
[1771687333726,0.20485706,68598.0,68579.0,0.014585]
[1771687333930,0.20485706,68597.0,68579.0,0.014585]
[1771687334226,0.20485706,68596.0,68579.0,0.014585]
[1771687334438,0.20485706,68595.0,68579.0,0.014585]
[1771687334617,0.20485706,68594.0,68579.0,0.014585]
[1771687334814,0.05674141,68601.0,68579.0,0.014585]
[1771687335016,0.20485759,68600.0,68579.0,0.02917]
[1771687335217,0.20485759,68599.0,68578.0,0.014586]
[1771687335431,0.05674141,68590.0,68578.0,0.014586]
[1771687336819,0.05674141,68590.0,68577.0,0.22597814]
[1771687336820,0.05674141,68590.0,68577.0,0.24056414]
[1771687337016,0.05674141,68590.0,68578.0,0.014586]
[1771687337218,0.05674141,68601.0,68581.0,0.014585]
[1771687337430,0.001,68590.0,68581.0,0.014585]
[1771687337824,0.05674141,68601.0,68580.0,0.014585]
[1771687338133,0.2048655,68600.0,68580.0,0.014585]
[1771687338330,0.2048655,68599.0,68581.0,0.014585]
[1771687338530,0.2048655,68598.0,68580.0,0.014585]
[1771687338832,0.2048655,68597.0,68580.0,0.014585]
[1771687339132,0.2048655,68596.0,68579.0,0.014586]
[1771687339330,0.2048655,68595.0,68578.0,0.014586]
[1771687339533,0.2048655,68594.0,68579.0,0.014586]
[1771687339829,0.05674141,68590.0,68579.0,0.014586]
[1771687340624,0.05674141,68590.0,68577.0,0.24056414]
[1771687341331,0.05674141,68590.0,68578.0,0.014586]
[1771687344026,0.05674141,68590.0,68578.0,0.029172]
[1771687345238,0.05674141,68590.0,68579.0,0.014586]
[1771687345538,0.05674141,68590.0,68570.0,0.23986039]
[1771687345724,0.20126036,68589.0,68575.0,0.22527339]
[1771687345929,0.20127103,68588.0,68575.0,0.22527339]
[1771687346128,0.05674141,68590.0,68575.0,0.22527339]
[1771687346330,0.2012711,68589.0,68575.0,0.22527339]
[1771687346634,0.014585,68583.0,68575.0,0.22527339]
[1771687346830,0.014585,68582.0,68572.0,0.014587]
[1771687347024,0.014585,68582.0,68573.0,0.014587]
[1771687347229,0.014585,68582.0,68572.0,0.014587]
[1771687348040,0.05674141,68582.0,68568.0,0.014588]
[1771687348337,0.014586,68578.0,68569.0,0.014588]
[1771687348529,0.014586,68578.0,68568.0,0.014588]
[1771687348732,0.014586,68579.0,68565.0,0.014589]
[1771687349035,0.014587,68575.0,68565.0,0.014589]
[1771687349429,0.014586,68577.0,68563.0,0.014589]
[1771687349629,0.014586,68576.0,68566.0,0.014588]
[1771687350535,0.014586,68576.0,68567.0,0.014588]
[1771687351240,0.014588,68568.0,68554.0,0.014591]